Cogmind - Beta 14 @@@ ROGUE MODE // 2024.08.16 @ 16:22:54 Player: Cwaftwer Result: Destroyed by G-47 Trooper with Particle Gun Performance ------------- Evolutions (1) 500 Regions Visited (3) 600 Robots Destroyed (30) 150 Value Destroyed (520) 520 Prototype IDs (3) 60 Alien Tech Used (0) 0 Bonus (20) 20 TOTAL SCORE: 1850 Bonus ------- Follower Combat Kills 58 Friendly Fire -38 Cogmind --------- Core Integrity 0/400 Matter 6/300 Energy 62/100 System Corruption 6% Temperature Cool (55) Movement Core (450) Ox8 Location -9/Storage Parts ------- > --- POWER (1) -------- (None) > --- PROPULSION (3) --- (None) > --- UTILITY (3) ------ Large Storage Unit Signal Interpreter > --- WEAPON (2) ------- Beam Rifle Heavy Assault Rifle > --- INVENTORY (15) --- Improved Terrain Scanner Targeting Computer Hammer Peak State ------------ > --- POWER ------------ Light Ion Engine > --- PROPULSION ------- Flight Unit Flight Unit > --- UTILITY ---------- Heat Sink Signal Interpreter Targeting Computer > --- WEAPON ----------- Mini Grenade Launcher > --- INVENTORY -------- Improved Terrain Scanner Targeting Computer Rocket Launcher Hammer [Rating: 8] Favorites ----------- Power Light Ion Engine Engine Light Ion Engine Propulsion Flight Unit Treads Light Treads Hover Unit Hover Unit Flight Unit Flight Unit Utility Targeting Computer Device Seismic Detector Storage Large Storage Unit Processor Targeting Computer Weapon Assault Rifle Energy Gun Small Laser Ballistic Gun Assault Rifle Ballistic Cannon Light Cannon Launcher Grenade Launcher Impact Weapon Hammer Build | -11 -10 -9 -9 ------- Run | Yrd Mat Mat Sto Slots Evolved 2 | . . 2 . Power . | . . . . Propulsion 1 | . . 1 . Utility 1 | . . 1 . Weapon . | . . . . Parts Attached 34 | 2 18 6 8 Power 4 | . 2 1 1 Engine 4 | . 2 1 1 Core . | . . . . Reactor . | . . . . Propulsion 7 | . 5 1 1 Treads 1 | . . . 1 Leg . | . . . . Wheel . | . . . . Hover 2 | . 2 . . Flight 4 | . 3 1 . Utility 7 | . 4 1 2 Device 3 | . 1 1 1 Storage 1 | . . . 1 Processor 3 | . 3 . . Hackware . | . . . . Protection . | . . . . Artifact . | . . . . Weapon 16 | 2 7 3 4 Energy Gun 5 | 1 3 . 1 Energy Cannon . | . . . . Ballistic Gun 3 | 1 1 . 1 Ballistic Cannon 1 | . 1 . . Launcher 5 | . 2 2 1 Special Weapon . | . . . . Impact Weapon 2 | . . 1 1 Slashing Weapon . | . . . . Piercing Weapon . | . . . . Special Melee Weapon . | . . . . Unidentified Prototypes . | . . . . Parts Lost 10 | . 4 2 4 Power 1 | . . . 1 Propulsion 4 | . 2 1 1 Utility 2 | . 1 . 1 Weapon 3 | . 1 1 1 Highest Loss Streak 4 | . 3 2 4 To Critical Strikes . | . . . . Average Slot Usage (%) 60 | . 65 56 50 Engine 6 | . 6 8 3 Hover 3 | . 6 . . Flight 7 | . 7 14 . Device 5 | . 4 2 8 Storage 1 | . . . 5 Processor 17 | . 16 22 16 Energy Gun 5 | . 8 . 1 Ballistic Gun 5 | . 9 . 1 Ballistic Cannon 2 | . 2 3 . Launcher 3 | . 3 4 3 Impact Weapon 1 | . . . 6 Peak Build Rating 8 | 2 7 8 7 Average Rating 4 | 1 4 6 5 On Entrance 2 | . 2 6 3 Naked Turns . | . . . . Heaviest Build 28 | 3 9 6 28 Greatest Support 20 | 3 12 8 20 Greatest Overweight (x) 1 | . 1 1 1 Average Overweight (x) . | . . . . Largest Inventory Capacity 15 | 5 5 5 15 Average Capacity 5 | 5 5 5 9 Most Carried 5 | 3 5 5 5 Average Carried 3 | 1 4 4 4 Final Capacity 15 | 5 5 5 15 Final Carried 5 | 3 5 5 3 Class Distribution -------------------- 82% | Mutant 17% | Scavenger-Mutant Dominant Class ---------------- Mutant | -10/Materials Mutant | -9/Materials Mutant | -9/Storage Resources | -11 -10 -9 -9 ----------- Run | Yrd Mat Mat Sto Matter Collected 575 | 241 76 208 50 Remotely . | . . . . Salvage Created 609 | 77 197 218 117 Parts 70 | 9 28 20 13 Haulers Intercepted 1 | . 1 . . Recyclers Shooed . | . . . . Parts Field Recycled . | . . . . Retrieved Matter . | . . . . Parts Self-Destructed . | . . . . Prevented . | . . . . Kills | -11 -10 -9 -9 ------- Run | Yrd Mat Mat Sto Combat Hostiles Destroyed 16 | . 7 4 5 Guns 3 | . 3 . . AOE 13 | . 4 4 5 Classes Destroyed 10 | 1 7 1 1 Worker 1 | . 1 . . Builder 1 | . . 1 . Tunneler 4 | 3 . 1 . Hauler 1 | . 1 . . Recycler 2 | . 1 1 . Operator 1 | . 1 . . Watcher 4 | . 3 1 . Swarmer 6 | . 6 . . Grunt 8 | . 1 4 3 Protector 2 | . . . 2 Best Kill Streak 14 | 2 14 5 5 Combat Bots Only 5 | . 4 3 5 Max Kills in Single Turn 3 | 1 2 3 2 Gunslinging . | . . . . Exploded 3 | . 1 3 2 Melee . | . . . . Uniques/NPCs Destroyed . | . . . . Combat | -11 -10 -9 -9 -------- Run | Yrd Mat Mat Sto Hostile Shots Fired 90 | . 34 15 41 Missed 27 | . 10 6 11 Damage Taken 1225 | . 291 167 767 Core 463 | . 61 59 343 Absorbed by Shields . | . . . . Regen/Repaired (Parts) 14 | . . 14 . Core Remaining (%) 87 | 100 75 . . Volleys Fired 50 | 7 22 13 8 Largest 2 | 2 2 1 2 Hottest 79 | 60 60 35 79 Shots Fired 67 | 14 30 13 10 Gun 33 | 14 15 . 4 Cannon 4 | . 3 1 . Launcher 30 | . 12 12 6 Special . | . . . . Kinetic 23 | 7 13 1 2 Thermal 14 | 7 5 . 2 Explosive 30 | . 12 12 6 Electromagnetic . | . . . . Robot Hit Streak 9 | 6 1 4 9 Robot Miss Streak 5 | 2 4 5 3 Penetration Max . | . . . . Secondary Targets . | . . . . Shots Hit Robots 30 | 9 7 8 6 Core Hits 55 | 3 26 10 16 Critical Kills . | . . . . Critical Parts Destroyed . | . . . . Critical Strikes . | . . . . Melee Attacks . | . . . . Impact . | . . . . Slashing . | . . . . Piercing . | . . . . Sneak Attacks . | . . . . Combat Hostiles . | . . . . Follow-up Attacks . | . . . . Damage Inflicted 1899 | 107 554 513 725 Guns 193 | 107 74 . 12 Cannons . | . . . . Explosions 1706 | . 480 513 713 Melee . | . . . . Ramming . | . . . . Kinetic 91 | 53 26 . 12 Thermal 102 | 54 48 . . Explosive 1706 | . 480 513 713 Electromagnetic . | . . . . Impact . | . . . . Slashing . | . . . . Piercing . | . . . . Highest Corruption 6 | . . . 6 Average Corruption 6 | . . . 6 Corruption Purged . | . . . . Corruption Blocked . | . . . . Overload Shots . | . . . . Overflow Damage 50 | . 33 10 7 Projectiles . | . . . . Explosions 50 | . 33 10 7 Melee . | . . . . Knockbacks . | . . . . Impact . | . . . . Kinetic . | . . . . Secondary . | . . . . Self-Inflicted Damage 247 | . 84 34 129 Shots 10 | . 3 2 5 Rammed . | . . . . Targets Rammed . | . . . . Kicked . | . . . . Crushed . | . . . . Highest Temperature 31 | . 18 . 31 Average Temperature 18 | . 13 . 20 Received Heat Transfer 291 | . 18 45 228 Siege Activations . | . . . . Robots Corrupted . | . . . . Combat Hostiles . | . . . . Parts Fried . | . . . . Impact Corruptions . | . . . . Robots Melted . | . . . . Combat Hostiles . | . . . . Parts Melted . | . . . . Heat Transferred 225 | 125 100 . . Parts Sabotaged . | . . . . Parts Stolen . | . . . . Parts Stripped . | . . . . Power Chain Reactions . | . . . . Alert | -11 -10 -9 -9 ------- Run | Yrd Mat Mat Sto Peak Influence 325 | 15 243 325 273 Initial 132 | . 9 102 132 Average 118 | 5 94 201 174 Maximum Alert Level 1 | . 1 1 1 Low Security (%) 71 | 100 71 41 80 Level 1 28 | . 28 58 19 Level 2 . | . . . . Level 3 . | . . . . Level 4 . | . . . . Level 5 . | . . . . High Security . | . . . . Max Security . | . . . . Squads Dispatched 3 | . . 1 2 Investigation 1 | . . 1 . Extermination . | . . . . Reinforcement . | . . . . Assault 2 | . . . 2 Garrison . | . . . . Intercept . | . . . . Searches Triggered . | . . . . Construction Impeded . | . . . . Haulers Reinforced . | . . . . Active Scanning Responses . | . . . . Cargo Convoy Interrupts . | . . . . Stealth | -11 -10 -9 -9 --------- Run | Yrd Mat Mat Sto Distress Signals 2 | . . 2 . Communications Jammed . | . . . . Distress Signals . | . . . . Times Spotted 31 | . 12 8 11 Peak Tracking Total 10 | . 3 5 10 Tactical Retreats . | . . . . Traps | -11 -10 -9 -9 ------- Run | Yrd Mat Mat Sto Traps Triggered 3 | . 2 1 . Indirectly . | . . . . Trap Hack Attempts . | . . . . Triggered . | . . . . Disarmed . | . . . . Reprogrammed . | . . . . Reused . | . . . . Traps Extracted . | . . . . Installed . | . . . . Triggered . | . . . . Machines | -11 -10 -9 -9 ---------- Run | Yrd Mat Mat Sto Machines Disabled 1 | . . . 1 Max in Single Turn 1 | . . . 1 Machines Repaired . | . . . . Machines Dismantled . | . . . . Machines Sabotaged . | . . . . Overloaded Fab Kills . | . . . . Hacking | -11 -10 -9 -9 --------- Run | Yrd Mat Mat Sto Machines Accessed 8 | . 4 4 . Terminals 5 | . 3 2 . Fabricators . | . . . . Repair Stations 1 | . . 1 . Recycling Units 1 | . 1 . . Scanalyzers 1 | . . 1 . Garrison Access . | . . . . Total Hacks 25 | . 9 16 . Successful 16 | . 6 10 . Failed 9 | . 3 6 . Catastrophic . | . . . . Database Lockouts . | . . . . Manual . | . . . . Terminals 14 | . 7 7 . Fabricators . | . . . . Repair Stations 2 | . . 2 . Recycling Units 2 | . 2 . . Scanalyzers 7 | . . 7 . Garrison Access . | . . . . Terminal Hacks 6 | . 4 2 . Record 2 | . . 2 . Prototype ID Bank 2 | . 2 . . Zone Layout 2 | . 2 . . Fabricator Hacks . | . . . . Repair Station Hacks 2 | . . 2 . Scan Component 1 | . . 1 . Repair 1 | . . 1 . Recycling Unit Hacks 2 | . 2 . . Report Inventory 1 | . 1 . . Retrieve Components 1 | . 1 . . Scanalyzer 6 | . . 6 . Insert Component 3 | . . 3 . Analyze 3 | . . 3 . Garrison Access Hacks . | . . . . Unauthorized Hacks . | . . . . Terminals . | . . . . Fabricators . | . . . . Repair Stations . | . . . . Recycling Units . | . . . . Scanalyzers . | . . . . Garrison Access . | . . . . Data Cores Recovered . | . . . . Used . | . . . . Hacking Detections 7 | . 4 3 . Full Trace Events 1 | . . 1 . Feedback Events . | . . . . Feedback Blocked . | . . . . Robot Schematics Acquired . | . . . . Robots Built . | . . . . Authchips . | . . . . Time . | . . . . Total Robot Build Rating . | . . . . Part Schematics Acquired 3 | . . 3 . Parts Built . | . . . . Authchips . | . . . . Time . | . . . . Total Part Build Rating . | . . . . Parts Repaired 1 | . . 1 . Time 26 | . . 26 . Parts Recycled . | . . . . Recycled Matter . | . . . . Retrieved Matter . | . . . . Retrieved Components 1 | . 1 . . Parts Scanalyzed 3 | . . 3 . Part Schematics Acquired 3 | . . 3 . Parts Damaged . | . . . . Bothacking | -11 -10 -9 -9 ------------ Run | Yrd Mat Mat Sto Used RIF Installer . | . . . . Robots Hacked . | . . . . Non-combat . | . . . . Combat . | . . . . Robot Hacks Applied . | . . . . Relay Couplers Released . | . . . . Fabnet Peak Effective % . | . . . . Robots Rewired . | . . . . Allies Hacked . | . . . . Hacks Repelled . | . . . . Allies | -11 -10 -9 -9 -------- Run | Yrd Mat Mat Sto Total Allies 2 | . . . 2 Largest Group 2 | . . . 2 Highest-Rated Group 62 | . . . 62 Highest-Rated Ally 31 | . . . 31 Total Orders . | . . . . Ally Attacks 5 | . . . 5 Total Damage 86 | . . . 86 Kills 2 | . . . 2 Allies Corrupted . | . . . . Allies Melted . | . . . . Intel | -11 -10 -9 -9 ------- Run | Yrd Mat Mat Sto Robot Analysis Total . | . . . . Derelict Logs Recovered . | . . . . Drone Launches . | . . . . Drone Recoveries . | . . . . Exploration | -11 -10 -9 -9 ------------- Run | Yrd Mat Mat Sto Turns Passed 563 | 71 277 112 103 Spaces Moved 561 | 43 321 125 72 Core 272 | 43 164 5 60 Treads 12 | . . . 12 Legs . | . . . . Wheels . | . . . . Hover 70 | . 70 . . Flight 207 | . 87 120 . Fastest Speed 37 | 50 37 37 50 Average Speed 50 | 50 48 38 78 Slowest Speed 240 | 50 120 120 240 Overloaded Moves . | . . . . Propulsion Burnouts . | . . . . Robots Hopped . | . . . . Cave-ins Triggered 1 | . . . 1 Exploration Rate (%) 19 | 3 45 19 9 Regions Visited 3 Branch Regions 1 Pre-discovered Areas . | . . . . Known Exits Taken 2 | . 1 1 . Unknown Exits Taken 1 | 1 . . . Scrap Searched . | . . . . Spaces Dug . | . . . . Terrain Destroyed 172 | . 60 72 40 Melee . | . . . . Projectile . | . . . . AOE 172 | . 60 72 40 Terrain Rammed . | . . . . Walls Destroyed . | . . . . Machines Disabled . | . . . . Actions | -11 -10 -9 -9 --------- Run | Yrd Mat Mat Sto Total 778 | 77 413 177 111 Wait 84 | 21 27 20 16 Move 558 | 42 320 124 72 Hop . | . . . . Pick Up 36 | 5 18 8 5 Fast Attach . | . . . . Attach 29 | 2 16 4 7 Detach 5 | . 3 1 1 Swap 5 | . 2 2 1 Drop 11 | . 5 5 1 Fire 50 | 7 22 13 8 Melee . | . . . . Ram . | . . . . Kick . | . . . . Crush . | . . . . Escape Stasis . | . . . . Rewire . | . . . . Trap . | . . . . Miscellaneous . | . . . . Route ------- -11/Scrapyard -10/Materials -9/Materials -9/Storage History --------- Turn | Location | Event 11 | -11/Scrapyard | Discovered new exit (range 15) 72 | -11/Scrapyard | Entered Materials 295 | -10/Materials | Lost 3 parts (1n1u1w) 333 | -10/Materials | Discovered new exit (range 16) 349 | -10/Materials | Identified exit to Materials 349 | -10/Materials | Entered another Materials area 349 | -9/Materials | Evolved 2 slots: Propulsion x1, Utility x1 412 | -9/Materials | Repaired Flight Unit 437 | -9/Materials | Discovered new exit (range 11) 460 | -9/Materials | Identified exit to Storage 461 | -9/Materials | Entered Storage 467 | -9/Storage | Met a pair of Derelict thieves 553 | -9/Storage | Crushed by falling debris 553 | -9/Storage | Core integrity fell below 50% 559 | -9/Storage | Core integrity fell below 20% 564 | -9/Storage | Destroyed by G-47 Trooper with Particle Gun Last Messages --------------- The unstable cave ceiling collapses. 7Q-F41(g) destroyed. I-25 Savior destroyed. The unstable cave ceiling collapses. Ion Engine crushed. G-34 Mercenary destroyed. Transport Mainframe disabled. Sensor Array destroyed. I-25 Savior destroyed. Destroyed Ion Engine. The unstable cave ceiling collapses. Crushed by falling debris. Lgt. Ion Engine destroyed. System corrupted by crushing effect (+3). Lgt. Treads destroyed. System corrupted by crushing effect (+3). The unstable cave ceiling collapses. Imp. Heat Sink crushed. The unstable cave ceiling collapses. Rocket Launcher destroyed. Map ----- +----------------------------------------------------+ | ?????????????????????????????????????????????????? | | ?????????????????????????????????????????????????? | | ?????????????????????????????????????????????????? | | ?????????????????????????????????????????????????? | | ?????????????????????????????????????????????????? | | ?????????????????????????????????????????????????? | | ?????????????????????????????????????????????????? | | ?????????????????????????????????????????????????? | | ?????????????????????????????????????????????????? | | ?????????????????????????????????????????????????? | | ?????????????????????????????????????????????????? | | ?????????????????????????????????????????????????? | | ?????????????????????????????????????????????????? | | ?????????????????????????????????????????????????? | | ??????????????????????????????????????????######## | | ??????????????????????????????????????????#! ! # | | ??????????????????????????????????????????#!! ! # | | ?????????????????????????????####?????????# !!# | | ????????????????????????####? ##????????# # | | ???????????? ??????????## # #????????##" "### | | ???????????? ######??# ###??????# T#? | | ??????????? ? % ######## ##? | | ?????????? ## %= ! # ####+#### | | ????????? g g %[[g # | | ????????? != #g== "" + ! | | ????????? = [% g@%[ "" # | | ????????????????### ## # ######### | | ??????????????????# # # ## #######???????? | | ??????????????????????#### #?????????????? | | ?????????????????????????###########?????????????? | | | | | | | | | | | | | | | | | | | | | | | | | | | | | | | | | | | | | | | | | +----------------------------------------------------+ Best States ------------- Heat Dissipation 38 Energy Generation 10 Energy Capacity 125 Matter Stores 300 Matter Capacity 300 Sight Range 16 Robot Scan Range 14 Terrain Scan Density 10 Evasion (%) 62 Targeting Accuracy 5 Recoil Reduction 1 Item Schematics ----------------- Mni. Grenade Launcher | -9/Materials | Scanalyzed Targeting Computer | -9/Materials | Scanalyzed Hammer | -9/Materials | Scanalyzed Robot Schematics ------------------ None Fabricated ------------ Nothing Alien Tech Used ----------------- None Achievements -------------- None Challenges ------------ None Game ------ Seed StasisSiegeRailgun Manual? 0 Play Time 00:16:36 Cumulative 46.7 hours Start 2024.08.16 @ 16:09:05 End 2024.08.16 @ 16:22:54 Sessions 1 Manual Loads 0 Difficulty Rogue Special Mode None Game No. 75 Rogue 74 Adventurer 1 Explorer 0 Win Type - Total 1 Types 1/0/0/0/0/0/0/0/0 Lore% 25 Gallery% 40 Achievement% 33 Wizard Run 0 Options --------- Layout 1 ASCII 0 Keyboard 0 Movement Mouse Keybinds 0 Fullscreen 1 Font 24/Smallcaps Map View 50x40 Zoom Use 0% Tactical HUD 0 Map Filters NONE Filters NONE Steam 1 RUN: 80126a85-b37a-480d-bdaa-32bc03d09854